[Event "15e Open International d'Echecs Mont de Marsan"]
[Site "Mont de Marsan, France"]
[Date "????.??.??"]
[Round "3.2"]
[White "PENG LI, MIN"]
[Black "ROSELLE, TRISTAN"]
[Result "1-0"]
[TimeControl "60 minutes + 30 secondes per move"]
[WhiteTitle "IM"]
[WhiteElo "2442"]
[BlackElo "2155"]

1. e4 {[%clk 01:30:58]} {[%emt 00:00:01]} e5 {[%clk 01:25:46]} {[%emt
00:05:14]} 2. Nf3 {[%clk 01:31:12]} {[%emt 00:00:16]} Nc6 {[%clk 01:26:06]}
{[%emt 00:00:09]} 3. Bb5 {[%clk 01:31:38]} {[%emt 00:00:04]} a6 {[%clk
01:26:25]} {[%emt 00:00:12]} 4. Bxc6 {[%clk 01:32:02]} {[%emt 00:00:06]} dxc6
{[%clk 01:26:49]} {[%emt 00:00:06]} 5. O-O {[%clk 01:32:28]} {[%emt 00:00:04]}
Bg4 {[%clk 01:27:10]} {[%emt 00:00:08]} 6. h3 {[%clk 01:32:52]} {[%emt
00:00:06]} h5 {[%clk 01:27:23]} {[%emt 00:00:16]} 7. d3 {[%clk 01:33:17]}
{[%emt 00:00:05]} Qf6 {[%clk 01:27:41]} {[%emt 00:00:12]} 8. Nbd2 {[%clk
01:33:43]} {[%emt 00:00:05]} Ne7 {[%clk 01:27:57]} {[%emt 00:00:14]} 9. Re1
{[%clk 01:30:53]} {[%emt 00:03:20]} Ng6 {[%clk 01:24:54]} {[%emt 00:03:32]} 10.
d4 {[%clk 01:27:11]} {[%emt 00:04:12]} Bxf3 {[%clk 01:23:28]} {[%emt 00:01:56]}
11. Nxf3 {[%clk 01:26:48]} {[%emt 00:00:53]} exd4 {[%clk 01:22:08]} {[%emt
00:01:50]} 12. e5 {[%clk 01:26:16]} {[%emt 00:01:02]} Qe7 {[%clk 01:15:15]}
{[%emt 00:07:23]} 13. Ng5 {[%clk 01:12:27]} {[%emt 00:14:16]} O-O-O {[%clk
01:04:09]} {[%emt 00:11:36]} 14. Qf3 {[%clk 01:12:49]} {[%emt 00:00:06]} Rg8
{[%clk 00:45:45]} {[%emt 00:18:54]} 15. Nxf7 {[%clk 01:10:53]} {[%emt
00:02:28]} Re8 {[%clk 00:45:16]} {[%emt 00:00:59]} 16. Ng5 {[%clk 01:07:42]}
{[%emt 00:03:40]} Kb8 {[%clk 00:34:58]} {[%emt 00:10:49]} 17. Qxh5 {[%clk
01:04:41]} {[%emt 00:03:31]} Nh8 {[%clk 00:33:15]} {[%emt 00:02:12]} 18. Qh7
{[%clk 01:04:50]} {[%emt 00:00:21]} 1-0

[Event "15e Open International d'Echecs Mont de Marsan"]
[Site "Mont de Marsan, France"]
[Date "????.??.??"]
[Round "3.3"]
[White "BAREYRE, PATRICK"]
[Black "BERNAL MORO, LUIS JAVIER"]
[Result "1/2-1/2"]
[TimeControl "60 minutes + 30 secondes per move"]
[BlackTitle "IM"]
[WhiteElo "2134"]
[BlackElo "2418"]

1. d4 {[%clk 01:30:43]} {[%emt 00:00:16]} Nf6 {[%clk 01:30:51]} {[%emt
00:00:09]} 2. Nf3 {[%clk 01:30:56]} {[%emt 00:00:16]} g6 {[%clk 01:31:12]}
{[%emt 00:00:10]} 3. Nbd2 {[%clk 01:28:12]} {[%emt 00:03:14]} Bg7 {[%clk
01:25:31]} {[%emt 00:06:11]} 4. e4 {[%clk 01:19:44]} {[%emt 00:08:58]} O-O
{[%clk 01:21:09]} {[%emt 00:04:52]} 5. e5 {[%clk 01:10:30]} {[%emt 00:09:44]}
Nd5 {[%clk 01:17:40]} {[%emt 00:03:59]} 6. Bc4 {[%clk 01:09:10]} {[%emt
00:01:51]} Nb6 {[%clk 01:16:38]} {[%emt 00:01:32]} 7. Bb3 {[%clk 01:09:06]}
{[%emt 00:00:34]} d6 {[%clk 01:16:09]} {[%emt 00:00:59]} 8. Qe2 {[%clk
01:05:27]} {[%emt 00:04:06]} Nc6 {[%clk 01:05:38]} {[%emt 00:11:01]} 9. c3
{[%clk 01:00:39]} {[%emt 00:05:19]} dxe5 {[%clk 00:45:42]} {[%emt 00:20:26]} 10.
dxe5 {[%clk 01:00:38]} {[%emt 00:00:30]} Bf5 {[%clk 00:43:58]} {[%emt
00:02:14]} 11. e6 {[%clk 00:59:20]} {[%emt 00:01:48]} f6 {[%clk 00:35:30]}
{[%emt 00:08:59]} 12. Ne4 {[%clk 00:57:16]} {[%emt 00:02:33]} Na5 {[%clk
00:34:15]} {[%emt 00:01:46]} 13. Nd4 {[%clk 00:50:05]} {[%emt 00:07:41]} Bxe4
{[%clk 00:30:23]} {[%emt 00:04:22]} 14. Qxe4 {[%clk 00:50:31]} {[%emt
00:00:04]} f5 {[%clk 00:30:13]} {[%emt 00:00:39]} 15. Qh4 {[%clk 00:50:21]}
{[%emt 00:00:40]} Bxd4 {[%clk 00:19:37]} {[%emt 00:11:06]} 16. cxd4 {[%clk
00:50:29]} {[%emt 00:00:22]} Nxb3 {[%clk 00:20:03]} {[%emt 00:00:04]} 17. axb3
{[%clk 00:50:45]} {[%emt 00:00:14]} Qd6 {[%clk 00:20:08]} {[%emt 00:00:25]} 18.
O-O {[%clk 00:50:41]} {[%emt 00:00:34]} Qxe6 {[%clk 00:20:01]} {[%emt
00:00:36]} 19. Bf4 {[%clk 00:48:40]} {[%emt 00:02:31]} Nd5 {[%clk 00:17:02]}
{[%emt 00:03:30]} 20. Rfe1 {[%clk 00:46:40]} {[%emt 00:02:29]} Qd7 {[%clk
00:16:24]} {[%emt 00:01:08]} 21. Be5 {[%clk 00:46:44]} {[%emt 00:00:27]} Rf7
{[%clk 00:14:23]} {[%emt 00:02:30]} 22. Qh6 {[%clk 00:46:00]} {[%emt 00:01:14]}
f4 {[%clk 00:11:03]} {[%emt 00:03:50]} 23. b4 {[%clk 00:42:33]} {[%emt
00:03:57]} Qg4 {[%clk 00:07:41]} {[%emt 00:03:52]} 24. Ra3 {[%clk 00:42:04]}
{[%emt 00:00:59]} Qh5 {[%clk 00:04:09]} {[%emt 00:04:02]} 25. Qxh5 {[%clk
00:41:46]} {[%emt 00:00:49]} gxh5 {[%clk 00:04:33]} {[%emt 00:00:06]} 26. b5
{[%clk 00:41:21]} {[%emt 00:00:54]} Rf5 {[%clk 00:02:33]} {[%emt 00:02:30]} 27.
Rea1 {[%clk 00:41:20]} {[%emt 00:00:32]} Kf7 {[%clk 00:02:47]} {[%emt
00:00:15]} 28. Rxa7 {[%clk 00:41:39]} {[%emt 00:00:12]} Rxa7 {[%clk 00:03:10]}
{[%emt 00:00:07]} 29. Rxa7 {[%clk 00:42:07]} {[%emt 00:00:02]} b6 {[%clk
00:03:15]} {[%emt 00:00:24]} 30. Ra8 {[%clk 00:38:33]} {[%emt 00:04:04]} f3
{[%clk 00:01:02]} {[%emt 00:02:44]} 31. Rh8 {[%clk 00:35:35]} {[%emt 00:03:28]}
Nf6 {[%clk 00:01:04]} {[%emt 00:00:28]} 32. Rc8 {[%clk 00:22:57]} {[%emt
00:13:08]} Ng4 {[%clk 00:01:00]} {[%emt 00:00:34]} 33. Bxc7 {[%clk 00:17:07]}
{[%emt 00:06:19]} Rxb5 {[%clk 00:01:01]} {[%emt 00:00:29]} 34. Rb8 {[%clk
00:11:27]} {[%emt 00:06:09]} Rxb2 {[%clk 00:01:06]} {[%emt 00:00:26]} 35. Rxb6
{[%clk 00:11:50]} {[%emt 00:00:06]} Rc2 {[%clk 00:00:46]} {[%emt 00:00:50]} 36.
Bf4 {[%clk 00:11:25]} {[%emt 00:00:55]} fxg2 {[%clk 00:00:34]} {[%emt
00:00:42]} 37. Bg3 {[%clk 00:10:34]} {[%emt 00:01:22]} Rd2 {[%clk 00:00:47]}
{[%emt 00:00:17]} 38. Rb4 {[%clk 00:07:10]} {[%emt 00:03:54]} Nh6 {[%clk
00:00:43]} {[%emt 00:00:34]} 39. Kxg2 {[%clk 00:07:06]} {[%emt 00:00:34]} Nf5
{[%clk 00:01:06]} {[%emt 00:00:06]} 40. Be5 {[%clk 00:07:05]} {[%emt 00:00:32]}
Rd3 {[%clk 00:01:27]} {[%emt 00:00:08]} 41. Kf1 {[%clk 00:06:19]} {[%emt
00:01:16]} Ke6 {[%clk 00:01:26]} {[%emt 00:00:31]} 42. Ke2 {[%clk 00:06:32]}
{[%emt 00:00:17]} Ra3 {[%clk 00:01:49]} {[%emt 00:00:05]} 43. Rb6+ {[%clk
00:06:34]} {[%emt 00:00:29]} Kd5 {[%clk 00:02:03]} {[%emt 00:00:16]} 44. Rb7
{[%clk 00:05:17]} {[%emt 00:01:48]} Ke4 {[%clk 00:01:40]} {[%emt 00:00:53]} 45.
Rb4 {[%clk 00:03:17]} {[%emt 00:02:29]} h4 {[%clk 00:01:31]} {[%emt 00:00:39]}
46. Bh8 {[%clk 00:03:09]} {[%emt 00:00:38]} Ra2+ {[%clk 00:01:33]} {[%emt
00:00:28]} 47. Kf1 {[%clk 00:01:59]} {[%emt 00:01:40]} Ra3 {[%clk 00:01:23]}
{[%emt 00:00:40]} 48. Ke2 {[%clk 00:02:15]} {[%emt 00:00:15]} Ra2+ {[%clk
00:01:05]} {[%emt 00:00:48]} 49. Kf1 {[%clk 00:02:32]} {[%emt 00:00:12]} h3
{[%clk 00:00:44]} {[%emt 00:00:52]} 50. Rb3 {[%clk 00:02:43]} {[%emt 00:00:19]}
Ra1+ {[%clk 00:01:06]} {[%emt 00:00:08]} 51. Ke2 {[%clk 00:03:07]} {[%emt
00:00:06]} Ra2+ {[%clk 00:01:32]} {[%emt 00:00:04]} 52. Kf1 {[%clk 00:03:28]}
{[%emt 00:00:09]} Ra1+ {[%clk 00:01:18]} {[%emt 00:00:44]} 1/2-1/2

[Event "15e Open International d'Echecs Mont de Marsan"]
[Site "Mont de Marsan, France"]
[Date "????.??.??"]
[Round "3.1"]
[White "LLANEZA VEGA, PATRICIA"]
[Black "PRIE, ERIC"]
[Result "0-1"]
[TimeControl "60 minutes + 30 secondes per move"]
[WhiteTitle "WIM"]
[BlackTitle "GM"]
[WhiteElo "2165"]
[BlackElo "2482"]

1. e4 {[%clk 01:30:57]} {[%emt 00:00:02]} c6 {[%clk 01:15:24]} {[%emt
00:15:37]} 2. d4 {[%clk 01:31:21]} {[%emt 00:00:06]} d5 {[%clk 01:15:47]}
{[%emt 00:00:07]} 3. Nc3 {[%clk 01:31:45]} {[%emt 00:00:06]} dxe4 {[%clk
01:16:03]} {[%emt 00:00:14]} 4. Nxe4 {[%clk 01:32:07]} {[%emt 00:00:07]} Nf6
{[%clk 01:16:28]} {[%emt 00:00:05]} 5. Nxf6+ {[%clk 01:31:47]} {[%emt
00:00:50]} exf6 {[%clk 01:16:49]} {[%emt 00:00:08]} 6. c3 {[%clk 01:28:08]}
{[%emt 00:04:09]} Bd6 {[%clk 01:16:24]} {[%emt 00:00:55]} 7. Bd3 {[%clk
01:28:13]} {[%emt 00:00:24]} O-O {[%clk 01:16:46]} {[%emt 00:00:09]} 8. Ne2
{[%clk 01:28:05]} {[%emt 00:00:38]} Qc7 {[%clk 01:13:03]} {[%emt 00:04:13]} 9.
h3 {[%clk 01:16:52]} {[%emt 00:11:43]} Re8 {[%clk 01:09:52]} {[%emt 00:03:41]}
10. O-O {[%clk 01:17:00]} {[%emt 00:00:21]} Nd7 {[%clk 01:07:45]} {[%emt
00:02:34]} 11. f4 {[%clk 01:08:21]} {[%emt 00:09:10]} c5 {[%clk 00:56:24]}
{[%emt 00:11:51]} 12. Kh1 {[%clk 01:02:37]} {[%emt 00:06:13]} c4 {[%clk
00:55:51]} {[%emt 00:01:04]} 13. Bc2 {[%clk 01:02:37]} {[%emt 00:00:30]} Nb6
{[%clk 00:56:14]} {[%emt 00:00:06]} 14. Ng3 {[%clk 00:56:35]} {[%emt 00:06:33]}
Bd7 {[%clk 00:51:30]} {[%emt 00:05:13]} 15. Ne4 {[%clk 00:51:15]} {[%emt
00:05:50]} f5 {[%clk 00:45:26]} {[%emt 00:06:34]} 16. Ng5 {[%clk 00:41:59]}
{[%emt 00:09:46]} f6 {[%clk 00:44:01]} {[%emt 00:01:56]} 17. Nf3 {[%clk
00:41:02]} {[%emt 00:01:27]} Nd5 {[%clk 00:43:17]} {[%emt 00:01:14]} 18. Nh4
{[%clk 00:40:10]} {[%emt 00:01:22]} g6 {[%clk 00:43:28]} {[%emt 00:00:19]} 19.
Qf3 {[%clk 00:39:14]} {[%emt 00:01:27]} Bc6 {[%clk 00:43:13]} {[%emt 00:00:44]}
20. Qf2 {[%clk 00:33:36]} {[%emt 00:06:08]} Re7 {[%clk 00:37:33]} {[%emt
00:06:10]} 21. Bd2 {[%clk 00:22:06]} {[%emt 00:12:00]} Rae8 {[%clk 00:36:37]}
{[%emt 00:01:25]} 22. Rae1 {[%clk 00:22:34]} {[%emt 00:00:03]} Rxe1 {[%clk
00:36:50]} {[%emt 00:00:17]} 23. Rxe1 {[%clk 00:23:02]} {[%emt 00:00:02]} Rxe1+
{[%clk 00:29:31]} {[%emt 00:07:49]} 24. Qxe1 {[%clk 00:23:29]} {[%emt
00:00:03]} Bxf4 {[%clk 00:29:26]} {[%emt 00:00:35]} 25. Qe6+ {[%clk 00:16:20]}
{[%emt 00:07:39]} Kf8 {[%clk 00:25:17]} {[%emt 00:04:38]} 26. Be1 {[%clk
00:13:11]} {[%emt 00:03:40]} Qe7 {[%clk 00:17:38]} {[%emt 00:08:09]} 27. Qxe7+
{[%clk 00:13:28]} {[%emt 00:00:13]} Kxe7 {[%clk 00:17:59]} {[%emt 00:00:09]} 28.
Nf3 {[%clk 00:07:18]} {[%emt 00:06:40]} Ne3 {[%clk 00:17:36]} {[%emt 00:00:53]}
29. Bb1 {[%clk 00:07:23]} {[%emt 00:00:25]} Be4 {[%clk 00:17:42]} {[%emt
00:00:25]} 30. Bxe4 {[%clk 00:07:30]} {[%emt 00:00:23]} fxe4 {[%clk 00:18:05]}
{[%emt 00:00:06]} 31. Ng1 {[%clk 00:05:10]} {[%emt 00:02:50]} Nc2 {[%clk
00:17:39]} {[%emt 00:00:55]} 0-1

[ePGN "0.1;DGT LiveChess/2.2.3"]

[Event "15e Open International d'Echecs Mont de Marsan"]
[Site "Mont de Marsan, France"]
[Date "????.??.??"]
[Round "4.3"]
[White "BOGDANOV, EGOR"]
[Black "MARIETTE, LUCAS"]
[Result "1/2-1/2"]
[TimeControl "60 minutes + 30 secondes per move"]
[WhiteTitle "IM"]
[WhiteElo "2410"]
[BlackElo "2195"]

1. e4 {[%clk 01:30:57]} {[%emt 00:00:02]} e5 {[%clk 01:30:54]} {[%emt
00:00:06]} 2. Nf3 {[%clk 01:28:13]} {[%emt 00:03:14]} Nc6 {[%clk 01:31:18]}
{[%emt 00:00:07]} 3. Bb5 {[%clk 01:28:26]} {[%emt 00:00:18]} f5 {[%clk
01:31:17]} {[%emt 00:00:30]} 4. Nc3 {[%clk 01:27:14]} {[%emt 00:01:42]} fxe4
{[%clk 01:31:03]} {[%emt 00:00:44]} 5. Nxe4 {[%clk 01:27:30]} {[%emt 00:00:14]}
Nf6 {[%clk 01:30:49]} {[%emt 00:00:42]} 6. Nxf6+ {[%clk 01:27:40]} {[%emt
00:00:21]} Qxf6 {[%clk 01:29:29]} {[%emt 00:01:50]} 7. Qe2 {[%clk 01:27:57]}
{[%emt 00:00:13]} Be7 {[%clk 01:15:31]} {[%emt 00:14:28]} 8. Bxc6 {[%clk
01:28:02]} {[%emt 00:00:26]} dxc6 {[%clk 01:15:15]} {[%emt 00:00:45]} 9. Qxe5
{[%clk 01:27:59]} {[%emt 00:00:33]} O-O {[%clk 01:14:25]} {[%emt 00:01:20]} 10.
Qxf6 {[%clk 01:19:40]} {[%emt 00:08:50]} Bxf6 {[%clk 01:14:41]} {[%emt
00:00:14]} 11. O-O {[%clk 01:19:53]} {[%emt 00:00:17]} Bg4 {[%clk 01:13:26]}
{[%emt 00:01:45]} 12. d3 {[%clk 01:15:13]} {[%emt 00:05:10]} Rae8 {[%clk
01:09:39]} {[%emt 00:04:16]} 13. Be3 {[%clk 01:12:23]} {[%emt 00:03:20]} Bxf3
{[%clk 01:04:00]} {[%emt 00:06:09]} 14. gxf3 {[%clk 01:12:47]} {[%emt
00:00:06]} Be5 {[%clk 01:02:40]} {[%emt 00:01:50]} 15. Rae1 {[%clk 01:06:43]}
{[%emt 00:06:34]} b6 {[%clk 00:47:57]} {[%emt 00:15:14]} 16. c3 {[%clk
00:50:38]} {[%emt 00:16:35]} Bd6 {[%clk 00:46:55]} {[%emt 00:01:31]} 17. f4
{[%clk 00:48:40]} {[%emt 00:02:29]} Bxf4 {[%clk 00:36:57]} {[%emt 00:10:29]} 18.
Bxf4 {[%clk 00:48:59]} {[%emt 00:00:10]} Rxe1 {[%clk 00:37:21]} {[%emt
00:00:06]} 19. Rxe1 {[%clk 00:49:28]} {[%emt 00:00:02]} Rxf4 {[%clk 00:37:44]}
{[%emt 00:00:07]} 20. Re6 {[%clk 00:48:34]} {[%emt 00:01:23]} c5 {[%clk
00:37:20]} {[%emt 00:00:54]} 21. Kg2 {[%clk 00:48:57]} {[%emt 00:00:07]} Rf7
{[%clk 00:35:38]} {[%emt 00:02:11]} 22. Kg3 {[%clk 00:46:39]} {[%emt 00:02:49]}
Rd7 {[%clk 00:35:40]} {[%emt 00:00:28]} 23. Re3 {[%clk 00:47:04]} {[%emt
00:00:05]} Kf7 {[%clk 00:36:00]} {[%emt 00:00:10]} 24. Kf4 {[%clk 00:46:58]}
{[%emt 00:00:37]} Rd5 {[%clk 00:34:59]} {[%emt 00:01:30]} 25. h4 {[%clk
00:46:42]} {[%emt 00:00:47]} Kf6 {[%clk 00:34:30]} {[%emt 00:00:59]} 26. Kg4
{[%clk 00:45:45]} {[%emt 00:01:27]} 1/2-1/2

[Event "15e Open International d'Echecs Mont de Marsan"]
[Site "Mont de Marsan, France"]
[Date "????.??.??"]
[Round "4.1"]
[White "PRIE, ERIC"]
[Black "ETCHEGARAY, PATRICE"]
[Result "1-0"]
[TimeControl "60 minutes + 30 secondes per move"]
[WhiteTitle "GM"]
[BlackTitle "IM"]
[WhiteElo "2482"]
[BlackElo "2325"]

1. d4 {[%clk 01:27:31]} {[%emt 00:03:28]} Nf6 {[%clk 01:30:30]} {[%emt
00:00:30]} 2. Bf4 {[%clk 01:27:54]} {[%emt 00:00:06]} e6 {[%clk 01:27:34]}
{[%emt 00:03:26]} 3. e3 {[%clk 01:27:13]} {[%emt 00:01:13]} c5 {[%clk
01:27:35]} {[%emt 00:00:28]} 4. c3 {[%clk 01:27:24]} {[%emt 00:00:19]} Nc6
{[%clk 01:25:43]} {[%emt 00:02:22]} 5. Nd2 {[%clk 01:25:43]} {[%emt 00:02:11]}
d5 {[%clk 01:24:28]} {[%emt 00:01:45]} 6. Ngf3 {[%clk 01:26:04]} {[%emt
00:00:09]} cxd4 {[%clk 01:21:35]} {[%emt 00:03:24]} 7. exd4 {[%clk 01:25:45]}
{[%emt 00:00:49]} Nh5 {[%clk 01:20:57]} {[%emt 00:01:07]} 8. Be3 {[%clk
01:26:09]} {[%emt 00:00:06]} Bd6 {[%clk 01:21:10]} {[%emt 00:00:17]} 9. Ne5
{[%clk 01:26:08]} {[%emt 00:00:32]} g6 {[%clk 01:21:08]} {[%emt 00:00:32]} 10.
Nd3 {[%clk 01:25:33]} {[%emt 00:01:05]} Ng7 {[%clk 01:12:45]} {[%emt 00:08:53]}
11. f4 {[%clk 01:25:09]} {[%emt 00:00:55]} Nf5 {[%clk 01:11:20]} {[%emt
00:01:54]} 12. Bf2 {[%clk 01:25:13]} {[%emt 00:00:26]} f6 {[%clk 01:09:00]}
{[%emt 00:02:51]} 13. Nf3 {[%clk 01:23:11]} {[%emt 00:02:31]} O-O {[%clk
01:03:42]} {[%emt 00:05:48]} 14. Be2 {[%clk 01:05:44]} {[%emt 00:17:57]} Qc7
{[%clk 00:58:02]} {[%emt 00:06:10]} 15. g3 {[%clk 01:05:04]} {[%emt 00:01:10]}
Na5 {[%clk 00:54:01]} {[%emt 00:04:31]} 16. O-O {[%clk 00:53:23]} {[%emt
00:12:11]} Nc4 {[%clk 00:49:46]} {[%emt 00:04:45]} 17. Qc1 {[%clk 00:53:06]}
{[%emt 00:00:47]} Bd7 {[%clk 00:41:26]} {[%emt 00:08:50]} 18. a4 {[%clk
00:49:40]} {[%emt 00:03:56]} Na5 {[%clk 00:37:53]} {[%emt 00:04:02]} 19. Bd1
{[%clk 00:49:49]} {[%emt 00:00:20]} b6 {[%clk 00:35:09]} {[%emt 00:03:16]} 20.
Re1 {[%clk 00:47:44]} {[%emt 00:02:34]} Rae8 {[%clk 00:34:15]} {[%emt
00:01:23]} 21. Bc2 {[%clk 00:47:50]} {[%emt 00:00:25]} Nc4 {[%clk 00:32:31]}
{[%emt 00:02:14]} 22. Re2 {[%clk 00:36:55]} {[%emt 00:11:25]} Be7 {[%clk
00:26:16]} {[%emt 00:06:45]} 23. Be1 {[%clk 00:29:13]} {[%emt 00:08:11]} Nfd6
{[%clk 00:24:01]} {[%emt 00:02:47]} 24. Nf2 {[%clk 00:29:25]} {[%emt 00:00:16]}
Nf7 {[%clk 00:23:42]} {[%emt 00:00:49]} 25. b3 {[%clk 00:20:39]} {[%emt
00:09:16]} Na5 {[%clk 00:20:36]} {[%emt 00:03:36]} 26. Rb1 {[%clk 00:20:29]}
{[%emt 00:00:41]} Bd6 {[%clk 00:19:56]} {[%emt 00:01:10]} 27. Qd1 {[%clk
00:14:01]} {[%emt 00:06:58]} Bc6 {[%clk 00:15:51]} {[%emt 00:04:35]} 28. Ng4
{[%clk 00:13:32]} {[%emt 00:00:59]} Kg7 {[%clk 00:15:37]} {[%emt 00:00:44]} 29.
Qd3 {[%clk 00:11:44]} {[%emt 00:02:17]} Qd7 {[%clk 00:14:38]} {[%emt 00:01:30]}
30. Ra1 {[%clk 00:04:09]} {[%emt 00:08:05]} b5 {[%clk 00:11:32]} {[%emt
00:03:36]} 31. b4 {[%clk 00:03:36]} {[%emt 00:01:04]} Nc4 {[%clk 00:11:47]}
{[%emt 00:00:15]} 32. a5 {[%clk 00:03:18]} {[%emt 00:00:47]} Nb2 {[%clk
00:06:46]} {[%emt 00:05:30]} 33. Qd2 {[%clk 00:03:18]} {[%emt 00:00:31]} Nc4
{[%clk 00:07:07]} {[%emt 00:00:09]} 34. Qd1 {[%clk 00:03:10]} {[%emt 00:00:37]}
Bb8 {[%clk 00:06:12]} {[%emt 00:01:25]} 35. Bf2 {[%clk 00:02:47]} {[%emt
00:00:53]} e5 {[%clk 00:06:01]} {[%emt 00:00:41]} 36. Nxf6 {[%clk 00:02:44]}
{[%emt 00:00:33]} Kxf6 {[%clk 00:06:27]} {[%emt 00:00:05]} 37. dxe5+ {[%clk
00:03:05]} {[%emt 00:00:10]} Kg7 {[%clk 00:05:52]} {[%emt 00:01:05]} 38. Bc5
{[%clk 00:02:58]} {[%emt 00:00:36]} Nd8 {[%clk 00:04:32]} {[%emt 00:01:50]} 39.
Bxf8+ {[%clk 00:03:15]} {[%emt 00:00:13]} Rxf8 {[%clk 00:04:43]} {[%emt
00:00:20]} 40. Nd4 {[%clk 00:03:01]} {[%emt 00:00:43]} a6 {[%clk 00:03:35]}
{[%emt 00:01:39]} 41. e6 {[%clk 00:03:05]} {[%emt 00:00:25]} Qe7 {[%clk
00:03:58]} {[%emt 00:00:07]} 42. Nxc6 {[%clk 00:03:01]} {[%emt 00:00:33]} Nxc6
{[%clk 00:04:23]} {[%emt 00:00:05]} 43. Qxd5 {[%clk 00:03:20]} {[%emt
00:00:11]} Ba7+ {[%clk 00:03:20]} {[%emt 00:01:34]} 44. Kg2 {[%clk 00:03:28]}
{[%emt 00:00:22]} Qc7 {[%clk 00:01:56]} {[%emt 00:01:54]} 45. Qd7+ {[%clk
00:02:50]} {[%emt 00:01:07]} Qxd7 {[%clk 00:02:02]} {[%emt 00:00:24]} 46. exd7
{[%clk 00:03:14]} {[%emt 00:00:06]} Rd8 {[%clk 00:02:19]} {[%emt 00:00:13]} 47.
Kf3 {[%clk 00:01:11]} {[%emt 00:02:33]} Rxd7 {[%clk 00:02:30]} {[%emt
00:00:19]} 48. Rd1 {[%clk 00:01:33]} {[%emt 00:00:07]} Rxd1 {[%clk 00:00:40]}
{[%emt 00:02:22]} 49. Bxd1 {[%clk 00:01:59]} {[%emt 00:00:04]} Kf6 {[%clk
00:00:34]} {[%emt 00:00:36]} 50. Bb3 {[%clk 00:02:04]} {[%emt 00:00:24]} Ne7
{[%clk 00:00:31]} {[%emt 00:00:33]} 51. Bxc4 {[%clk 00:01:29]} {[%emt
00:01:06]} bxc4 {[%clk 00:01:00]} {[%emt 00:00:01]} 52. Re4 {[%clk 00:01:23]}
{[%emt 00:00:36]} h5 {[%clk 00:01:12]} {[%emt 00:00:19]} 53. Rxc4 {[%clk
00:01:39]} {[%emt 00:00:14]} Ke6 {[%clk 00:01:23]} {[%emt 00:00:19]} 54. Re4+
{[%clk 00:01:14]} {[%emt 00:00:55]} Kd6 {[%clk 00:01:50]} {[%emt 00:00:03]} 55.
Ke2 {[%clk 00:01:22]} {[%emt 00:00:22]} Bg1 {[%clk 00:01:40]} {[%emt 00:00:40]}
56. Kf1 {[%clk 00:01:12]} {[%emt 00:00:41]} Ba7 {[%clk 00:02:03]} {[%emt
00:00:07]} 57. Ke1 {[%clk 00:01:08]} {[%emt 00:00:34]} Bg1 {[%clk 00:01:00]}
{[%emt 00:01:33]} 58. Re2 {[%clk 00:01:29]} {[%emt 00:00:09]} Nf5 {[%clk
00:01:09]} {[%emt 00:00:21]} 59. Kd2 {[%clk 00:01:52]} {[%emt 00:00:07]} h4
{[%clk 00:01:11]} {[%emt 00:00:28]} 60. g4 {[%clk 00:01:41]} {[%emt 00:00:40]}
Ne7 {[%clk 00:01:30]} {[%emt 00:00:11]} 61. c4 {[%clk 00:01:08]} {[%emt
00:01:04]} h3 {[%clk 00:01:03]} {[%emt 00:00:56]} 62. Kc3 {[%clk 00:01:26]}
{[%emt 00:00:12]} Nc6 {[%clk 00:01:08]} {[%emt 00:00:26]} 63. Rd2+ {[%clk
00:00:41]} {[%emt 00:01:15]} Kc7 {[%clk 00:01:33]} {[%emt 00:00:05]} 64. Rd3
{[%clk 00:01:04]} {[%emt 00:00:07]} Bxh2 {[%clk 00:01:47]} {[%emt 00:00:15]} 65.
Rxh3 {[%clk 00:01:24]} {[%emt 00:00:10]} Bxf4 {[%clk 00:02:07]} {[%emt
00:00:10]} 66. Rh7+ {[%clk 00:01:42]} {[%emt 00:00:12]} Kd6 {[%clk 00:02:09]}
{[%emt 00:00:27]} 67. b5 {[%clk 00:01:23]} {[%emt 00:00:51]} Nb8 {[%clk
00:00:32]} {[%emt 00:02:07]} 68. Rb7 {[%clk 00:00:53]} {[%emt 00:01:00]} Kc5
{[%clk 00:00:40]} {[%emt 00:00:22]} 69. bxa6 {[%clk 00:01:11]} {[%emt
00:00:12]} Be5+ {[%clk 00:00:32]} {[%emt 00:00:38]} 70. Kd3 {[%clk 00:00:55]}
{[%emt 00:00:46]} 1-0